Cogmind - Beta 14 @@@ ROGUE MODE // 2024.10.25 @ 09:45:42 Player: zitsii Result: Destroyed by G-34 Mercenary with Small Laser Performance ------------- Evolutions (1) 500 Regions Visited (2) 400 Robots Destroyed (48) 240 Value Destroyed (988) 988 Prototype IDs (0) 0 Alien Tech Used (0) 0 Bonus (86) 86 TOTAL SCORE: 2214 Bonus ------- High Alert Combat Kills 86 Cogmind --------- Core Integrity 0/400 Matter 300/300 Energy 100/100 System Corruption 1% Temperature Cool (6) Movement Core (450) Ox8 Location -9/Materials Parts ------- > --- POWER (1) -------- (None) > --- PROPULSION (3) --- (None) > --- UTILITY (3) ------ Large Storage Unit Utility Shielding > --- WEAPON (2) ------- Heavy Hammer Heavy Hammer > --- INVENTORY (15) --- Weapon Shielding Light Armor Plating Peak State ------------ > --- POWER ------------ Light Ion Engine > --- PROPULSION ------- Aluminum Leg Aluminum Leg Improved Aluminum Leg > --- UTILITY ---------- Medium Matter Pod Utility Shielding Hardened Light Armor Plating > --- WEAPON ----------- Heavy Hammer Heavy Hammer > --- INVENTORY -------- Ion Engine Light Armor Plating [Rating: 13] Favorites ----------- Power Light Ion Engine Engine Light Ion Engine Propulsion Aluminum Leg Leg Aluminum Leg Utility Utility Shielding Device Tractor Beam Storage Large Storage Unit Protection Utility Shielding Weapon Heavy Hammer Energy Gun Medium Laser Launcher Grenade Launcher Special Weapon Plasma Cutter Impact Weapon Heavy Hammer Build | -11 -10 -9 ------- Run | Yrd Mat Mat Slots Evolved 2 | . . 2 Power . | . . . Propulsion 1 | . . 1 Utility 1 | . . 1 Weapon . | . . . Parts Attached 27 | 5 9 13 Power 4 | 1 1 2 Engine 4 | 1 1 2 Core . | . . . Reactor . | . . . Propulsion 6 | 2 . 4 Treads . | . . . Leg 6 | 2 . 4 Wheel . | . . . Hover . | . . . Flight . | . . . Utility 10 | . 5 5 Device 1 | . 1 . Storage 3 | . 1 2 Processor . | . . . Hackware . | . . . Protection 6 | . 3 3 Artifact . | . . . Weapon 7 | 2 3 2 Energy Gun 2 | 2 . . Energy Cannon . | . . . Ballistic Gun . | . . . Ballistic Cannon . | . . . Launcher 1 | . 1 . Special Weapon 1 | . . 1 Impact Weapon 3 | . 2 1 Slashing Weapon . | . . . Piercing Weapon . | . . . Special Melee Weapon . | . . . Unidentified Prototypes . | . . . Parts Lost 11 | . . 11 Power 3 | . . 3 Propulsion 5 | . . 5 Utility 3 | . . 3 Weapon . | . . . Highest Loss Streak 2 | . . 2 To Critical Strikes . | . . . Average Slot Usage (%) 84 | . 96 78 Engine 9 | . 14 6 Leg 22 | . 28 19 Device 1 | . 4 . Storage 7 | . 6 8 Protection 19 | . 13 21 Energy Gun 5 | . 16 . Launcher 1 | . 5 . Impact Weapon 16 | . 5 22 Peak Build Rating 13 | 5 11 13 Average Rating 9 | 4 7 10 On Entrance 5 | . 5 11 Naked Turns . | . . . Heaviest Build 35 | 6 19 35 Greatest Support 33 | 20 20 33 Greatest Overweight (x) 9 | . . 9 Average Overweight (x) . | . . . Largest Inventory Capacity 15 | 5 5 15 Average Capacity 8 | 5 5 9 Most Carried 5 | 3 5 5 Average Carried 2 | 1 1 2 Final Capacity 15 | 5 5 15 Final Carried 3 | 1 3 2 Class Distribution -------------------- 90% | Mutant 9% | Scavenger-Mutant Dominant Class ---------------- Mutant | -10/Materials Mutant | -9/Materials Resources | -11 -10 -9 ----------- Run | Yrd Mat Mat Matter Collected 666 | 228 301 137 Remotely 42 | . 42 . Salvage Created 1094 | . 282 812 Parts 52 | . 22 30 Haulers Intercepted . | . . . Recyclers Shooed . | . . . Parts Field Recycled . | . . . Retrieved Matter . | . . . Parts Self-Destructed . | . . . Prevented . | . . . Kills | -11 -10 -9 ------- Run | Yrd Mat Mat Combat Hostiles Destroyed 32 | . 12 20 Melee 10 | . . 10 Guns 4 | . 4 . AOE 7 | . 7 . Classes Destroyed 8 | . 5 3 Worker 7 | . 2 5 Builder 2 | . 1 1 Tunneler 1 | . . 1 Watcher 6 | . 2 4 Swarmer 13 | . 6 7 Grunt 14 | . 6 8 Brawler 1 | . . 1 Sentry 4 | . . 4 Best Kill Streak 5 | . 5 5 Combat Bots Only 4 | . 4 3 Max Kills in Single Turn 2 | . 2 1 Gunslinging . | . . . Exploded 2 | . 2 . Melee 1 | . . 1 Uniques/NPCs Destroyed . | . . . Combat | -11 -10 -9 -------- Run | Yrd Mat Mat Hostile Shots Fired 264 | . 48 216 Missed 88 | . 15 73 Damage Taken 1998 | . 378 1620 Core 506 | . 96 410 Absorbed by Shields . | . . . Redirected to Shielding 12 | . . 12 Core Remaining (%) 80 | 100 61 . Volleys Fired 24 | . 24 . Largest 2 | . 2 . Hottest 90 | . 90 . Shots Fired 47 | . 47 . Gun 36 | . 36 . Cannon . | . . . Launcher 11 | . 11 . Special . | . . . Kinetic . | . . . Thermal 36 | . 36 . Explosive 11 | . 11 . Electromagnetic . | . . . Robot Hit Streak 3 | . 3 . Robot Miss Streak 4 | . 4 . Penetration Max . | . . . Secondary Targets . | . . . Shots Hit Robots 88 | . 25 63 Core Hits 35 | . 24 11 Critical Kills 3 | . . 3 Critical Parts Destroyed 15 | . 1 14 Critical Strikes 19 | . 2 17 Burn 1 | . 1 . Smash 18 | . 1 17 Melee Attacks 98 | . 8 90 Impact 98 | . 8 90 Slashing . | . . . Piercing . | . . . Sneak Attacks 10 | . 1 9 Combat Hostiles . | . . . Follow-up Attacks 12 | . 2 10 Damage Inflicted 3519 | . 934 2585 Guns 169 | . 169 . Cannons . | . . . Explosions 556 | . 556 . Melee 2794 | . 209 2585 Ramming . | . . . Kinetic . | . . . Thermal 169 | . 169 . Explosive 556 | . 556 . Electromagnetic . | . . . Impact 2794 | . 209 2585 Slashing . | . . . Piercing . | . . . Highest Corruption 4 | . 4 1 Average Corruption 3 | . 3 1 Corruption Purged . | . . . Corruption Blocked . | . . . Effects 8 | . 8 . Message Errors 3 | . 3 . Matter Fused 1 | . 1 . Heat Flow Errors 1 | . 1 . Energy Discharges 1 | . 1 . Misfires 1 | . 1 . Weapon Failures 1 | . 1 . Overload Shots . | . . . Overflow Damage 928 | . 82 846 Projectiles . | . . . Explosions 20 | . 20 . Melee 908 | . 62 846 Knockbacks 10 | . . 10 Impact 9 | . . 9 Kinetic . | . . . Secondary 1 | . . 1 Self-Inflicted Damage 47 | . 47 . Shots 2 | . 2 . Rammed . | . . . Targets Rammed . | . . . Kicked . | . . . Crushed . | . . . Highest Temperature 192 | . 192 10 Average Temperature 49 | . 50 6 Received Heat Transfer 648 | . 99 549 Siege Activations . | . . . Robots Corrupted 19 | . 2 17 Combat Hostiles 11 | . 1 10 Parts Fried 20 | . 1 19 Impact Corruptions 40 | . 3 37 Robots Melted . | . . . Combat Hostiles . | . . . Parts Melted 3 | . 3 . Heat Transferred 520 | . 520 . Parts Sabotaged . | . . . Parts Stolen . | . . . Parts Stripped . | . . . Power Chain Reactions . | . . . Alert | -11 -10 -9 ------- Run | Yrd Mat Mat Peak Influence 530 | . 455 530 Initial 122 | . . 122 Average 309 | . 210 375 Maximum Alert Level 2 | . 2 2 Low Security (%) 24 | 100 40 12 Level 1 37 | . 54 32 Level 2 37 | . 5 54 Level 3 . | . . . Level 4 . | . . . Level 5 . | . . . High Security . | . . . Max Security . | . . . Squads Dispatched 7 | . 3 4 Investigation 3 | . 2 1 Extermination . | . . . Reinforcement 4 | . 1 3 Assault . | . . . Garrison . | . . . Intercept . | . . . Searches Triggered . | . . . Construction Impeded . | . . . Haulers Reinforced . | . . . Active Scanning Responses . | . . . Cargo Convoy Interrupts . | . . . Stealth | -11 -10 -9 --------- Run | Yrd Mat Mat Distress Signals 6 | . 1 5 Communications Jammed . | . . . Distress Signals . | . . . Times Spotted 57 | . 17 40 Peak Tracking Total 5 | . 4 5 Tactical Retreats 5 | . . 5 Traps | -11 -10 -9 ------- Run | Yrd Mat Mat Traps Triggered 6 | . 4 2 Indirectly . | . . . Trap Hack Attempts . | . . . Triggered . | . . . Disarmed . | . . . Reprogrammed . | . . . Reused . | . . . Traps Extracted . | . . . Installed . | . . . Triggered . | . . . Machines | -11 -10 -9 ---------- Run | Yrd Mat Mat Machines Disabled 2 | . 2 . Max in Single Turn 1 | . 1 . Machines Repaired . | . . . Machines Dismantled . | . . . Machines Sabotaged . | . . . Overloaded Fab Kills . | . . . Hacking | -11 -10 -9 --------- Run | Yrd Mat Mat Machines Accessed 5 | . 5 . Terminals 3 | . 3 . Fabricators . | . . . Repair Stations 1 | . 1 . Recycling Units 1 | . 1 . Scanalyzers . | . . . Garrison Access . | . . . Total Hacks 12 | . 12 . Successful 9 | . 9 . Failed 3 | . 3 . Catastrophic 1 | . 1 . Database Lockouts . | . . . Manual . | . . . Terminals 6 | . 6 . Fabricators . | . . . Repair Stations 3 | . 3 . Recycling Units 3 | . 3 . Scanalyzers . | . . . Garrison Access . | . . . Terminal Hacks 6 | . 6 . Record 6 | . 6 . Fabricator Hacks . | . . . Repair Station Hacks 2 | . 2 . Scan Component 1 | . 1 . Repair 1 | . 1 . Recycling Unit Hacks 1 | . 1 . Report Inventory 1 | . 1 . Scanalyzer . | . . . Garrison Access Hacks . | . . . Unauthorized Hacks . | . . . Terminals . | . . . Fabricators . | . . . Repair Stations . | . . . Recycling Units . | . . . Scanalyzers . | . . . Garrison Access . | . . . Data Cores Recovered . | . . . Used . | . . . Hacking Detections 3 | . 3 . Full Trace Events 2 | . 2 . Feedback Events . | . . . Feedback Blocked . | . . . Robot Schematics Acquired . | . . . Robots Built . | . . . Authchips . | . . . Time . | . . . Total Robot Build Rating . | . . . Part Schematics Acquired . | . . . Parts Built . | . . . Authchips . | . . . Time . | . . . Total Part Build Rating . | . . . Parts Repaired . | . . . Time 26 | . 26 . Parts Recycled . | . . . Recycled Matter . | . . . Retrieved Matter . | . . . Retrieved Components . | . . . Parts Scanalyzed . | . . . Part Schematics Acquired . | . . . Parts Damaged . | . . . Bothacking | -11 -10 -9 ------------ Run | Yrd Mat Mat Used RIF Installer . | . . . Robots Hacked . | . . . Non-combat . | . . . Combat . | . . . Robot Hacks Applied . | . . . Relay Couplers Released . | . . . Fabnet Peak Effective % . | . . . Robots Rewired . | . . . Allies Hacked . | . . . Hacks Repelled . | . . . Allies | -11 -10 -9 -------- Run | Yrd Mat Mat Total Allies . | . . . Largest Group . | . . . Highest-Rated Group . | . . . Highest-Rated Ally . | . . . Total Orders . | . . . Ally Attacks . | . . . Total Damage . | . . . Kills . | . . . Allies Corrupted . | . . . Allies Melted . | . . . Intel | -11 -10 -9 ------- Run | Yrd Mat Mat Robot Analysis Total . | . . . Derelict Logs Recovered . | . . . Drone Launches . | . . . Drone Recoveries . | . . . Exploration | -11 -10 -9 ------------- Run | Yrd Mat Mat Turns Passed 1956 | 86 580 1290 Spaces Moved 1087 | 67 390 630 Core 37 | 9 . 28 Treads . | . . . Legs 1050 | 58 390 602 Wheels . | . . . Hover . | . . . Flight . | . . . Fastest Speed 50 | 50 120 120 Average Speed 146 | 110 120 167 Slowest Speed 500 | 120 120 500 Overloaded Moves . | . . . Propulsion Burnouts . | . . . Robots Hopped . | . . . Cave-ins Triggered . | . . . Exploration Rate (%) 40 | 6 67 48 Regions Visited 2 Branch Regions . Pre-discovered Areas . | . . . Known Exits Taken . | . . . Unknown Exits Taken 2 | 1 1 . Scrap Searched . | . . . Spaces Dug 3 | . . 3 Terrain Destroyed 76 | . 73 3 Melee 3 | . . 3 Projectile . | . . . AOE 73 | . 73 . Terrain Rammed . | . . . Walls Destroyed . | . . . Machines Disabled . | . . . Actions | -11 -10 -9 --------- Run | Yrd Mat Mat Total 1258 | 79 443 736 Wait . | . . . Move 1085 | 66 389 630 Hop . | . . . Pick Up 30 | 7 10 13 Fast Attach . | . . . Attach 20 | 5 3 12 Detach . | . . . Swap 7 | . 6 1 Drop 12 | 1 5 6 Fire 24 | . 24 . Melee 80 | . 6 74 Ram . | . . . Kick . | . . . Crush . | . . . Escape Stasis . | . . . Rewire . | . . . Trap . | . . . Miscellaneous . | . . . Route ------- -11/Scrapyard -10/Materials (discovered 3 exits: *Mat / [*Min x2]) -9/Materials (discovered 2 exits: [*Mat] / [*Min]) History --------- Turn | Location | Event 9 | -11/Scrapyard | Discovered new exit (range 15) 87 | -11/Scrapyard | Entered Materials 251 | -10/Materials | Discovered new exit (range 8) 310 | -10/Materials | Build established: Mutant 414 | -10/Materials | Discovered new exit (range 15) 541 | -10/Materials | Discovered new exit (range 16) 667 | -10/Materials | Entered another Materials area 667 | -9/Materials | Evolved 2 slots: Propulsion x1, Utility x1 1421 | -9/Materials | Discovered new exit (range 3) 1689 | -9/Materials | Discovered new exit (range 13) 1814 | -9/Materials | Core integrity fell below 50% 1941 | -9/Materials | Core integrity fell below 20% 1957 | -9/Materials | Destroyed by G-34 Mercenary with Small Laser Last Messages --------------- 01819_ Destroyed Sml. Laser. 01819_ G-34 Mercenary system corrupted by crushing effect. 01819_ G-34 Mercenary knocked back. 01820_ G-34 Mercenary system terminally corrupted. 01827_ O-16 Technician: "IFF HANDSHAKE FAILED. SECURING TERMINAL." 01832_ O-16 Technician uses terminal to summon reinforcements. 01832_ ALERT: Hostiles spotted, dispatching reinforcements to Terminal M010. 01832_ O-16 Technician locks terminal. 01895_ K-01 Serf collects debris. 01896_ Terminal unresponsive. 01898_ K-01 Serf collects debris. 01926_ Triggered EMP Trap. 01926_ A bubble of electromagnetic force engulfs the area. 01933_ Lgt. Armor Plating destroyed. Map ----- +----------------------------------------------------+ | ???????????????????# """ # """" #????? | | ???????????????????# """ # #????????????### | | ???????????????????# """ # #??????????????? | | ???????????????????# ########??????????????? | | ???????????????????# """ #?????????????????????? | | ???????????????????# """ #?????????????????????? | | ???????????????????# """ #?????????????????????? | | ???????????????????# #?????????????????????? | | ???????????????????#########?????????????????????? | | ?????????????????????????????????????????????????? | | ?????????????????????????????????????????????????? | | ?????????????????????????????????????????????????? | | ?????????????????????????????????????????????????? | | ?????????????????????????????????????????????????? | | ???????????????????????##+##?????????????????????? | | ??????????????????????? #?????????????????????? | | ??????????????????????? #?????????????????????? | | ??????????????????????? #?????????????????????? | | ???????????????????????# #?????????????????????? | | ???????????????????????# #?????????????????????? | | ???????????????????????# #?????????????????????? | | ???????????????????????# #?????????????????????? | | ???????????????????????+ +?????????????????????? | | ???????????????????????# #?????????????????????? | | ???????????????????????# #?????????????????????? | | ???????????????????????# @ #?????????????????????? | | ???????????????????????# #?#############???????? | | ???????????????????????# #?# #???????? | | ???????????????????????# #?# #???????? | | ???????????????????????# #?# #?????? ? | | ???????????????????????# #?# #?????? < | | ?????????????###########^ ^#?# #??????? | | ?????????????#! ## #?# #??????? | | ?????????????# ]] ## gg#?# #??????? | | ?????????????# ]] ## ########+######?????? | | ?????????????# ]] # ##### ########## | | ?????????????# # % " | | ?????????????# """ + T "T | | ?????????????# """ # % | | ?????????????# """ # ##### #######+#### | | ?????????????# #######???#######???# # | | ??????????????#########???????????????????# # | | ??????????????????????????????????????????# """ # | | ??????????????????????????????????????????# """ + | | ??????????????????????????????????????????# """ # | | ??????????????????????????????????????????# # | | ??????????????????????????????????????????######## | | ?????????????????????????????????????????????????? | | ?????????????????????????????????????????????????? | | ?????????????????????????????????????????????????? | +----------------------------------------------------+ Best States ------------- Heat Dissipation 28 Energy Generation 10 Energy Capacity 250 Matter Stores 400 Matter Capacity 400 Sight Range 16 Terrain Scan Density 10 Armor Coverage 300 Utility Shielding 33 Evasion (%) 55 Item Schematics ----------------- None Robot Schematics ------------------ None Fabricated ------------ Nothing Alien Tech Used ----------------- None Achievements -------------- Power Corrupts Challenges ------------ None Game ------ Seed CompositeDeepCycler Manual? 0 Play Time 00:21:42 Cumulative 1.6 hours Start 2024.10.25 @ 09:26:24 End 2024.10.25 @ 09:45:42 Sessions 1 Manual Loads 0 Difficulty Rogue Special Mode None Game No. 3 Rogue 2 Adventurer 1 Explorer 0 Win Type - Total 0 Types 0/0/0/0/0/0/0/0/0 Lore% 1 Gallery% 4 Achievement% 6 Wizard Run 0 Options --------- Layout 1 ASCII 0 Keyboard 0 Movement Arrows Keybinds 0 Fullscreen 1 Font 24/Smallcaps Map View 50x40 Zoom Use 0% Tactical HUD 1 Map Filters NONE Filters NONE Steam 1 RUN: 4525d9cb-6b4d-412a-8466-4c6a74bcd99d